[Event "Titled Tuesday Blitz August 08 Early 2023"]
[White "Spichkin, Alexander"]
[Black "benny_aizenberg"]
[WhiteFideId "4144074"]
[WhiteElo "2330"]
[BlackElo "2636"]
[Result "0-1"]
[Round "1"]
[TimeControl "180+1"]
[Date "2023.08.08"]
[WhiteClock "0:01:04"]
[BlackClock "0:00:51"]
[Board "169"]

1. f4 {[%clk 0:02:35]}  Nh6 {[%clk 0:02:55]} 2. Nf3 {[%clk 0:02:35]}  d5 {[%clk 0:02:53]} 3. d3 {[%clk 0:02:36]}  d4 {[%clk 0:02:48]} 4. e3 {[%clk 0:02:35]}  dxe3 {[%clk 0:02:47]} 5. Bxe3 {[%clk 0:02:36]}  Nf5 {[%clk 0:02:47]} 6. Qd2 {[%clk 0:02:35]}  g6 {[%clk 0:02:46]} 7. Nc3 {[%clk 0:02:35]}  Bg7 {[%clk 0:02:47]} 8. Be2 {[%clk 0:02:34]}  O-O {[%clk 0:02:45]} 9. O-O {[%clk 0:02:35]}  Nxe3 {[%clk 0:02:45]} 10. Qxe3 {[%clk 0:02:34]}  Nc6 {[%clk 0:02:45]} 11. Kh1 {[%clk 0:02:33]}  Bf5 {[%clk 0:02:36]} 12. Ne5 {[%clk 0:02:25]}  Qd6 {[%clk 0:02:27]} 13. Qf3 {[%clk 0:02:25]}  Nxe5 {[%clk 0:02:24]} 14. fxe5 {[%clk 0:02:25]}  Qxe5 {[%clk 0:02:24]} 15. Rae1 {[%clk 0:02:18]}  c6 {[%clk 0:02:24]} 16. Bd1 {[%clk 0:02:17]}  Qc7 {[%clk 0:02:23]} 17. d4 {[%clk 0:02:12]}  Bxd4 {[%clk 0:02:19]} 18. Ne2 {[%clk 0:02:09]}  Bg7 {[%clk 0:02:13]} 19. Ng3 {[%clk 0:02:06]}  Be6 {[%clk 0:02:13]} 20. c4 {[%clk 0:02:05]}  Bxc4 {[%clk 0:02:13]} 21. Rf2 {[%clk 0:02:05]}  Bd5 {[%clk 0:02:09]} 22. Qg4 {[%clk 0:02:03]}  e5 {[%clk 0:02:06]} 23. Qh4 {[%clk 0:01:55]}  f5 {[%clk 0:02:05]} 24. Ne2 {[%clk 0:01:52]}  Rae8 {[%clk 0:01:56]} 25. Nc3 {[%clk 0:01:53]}  e4 {[%clk 0:01:55]} 26. Nxd5 {[%clk 0:01:49]}  cxd5 {[%clk 0:01:55]} 27. Bb3 {[%clk 0:01:50]}  Qa5 {[%clk 0:01:52]} 28. Rd1 {[%clk 0:01:47]}  Kh8 {[%clk 0:01:35]} 29. Rfd2 {[%clk 0:01:42]}  d4 {[%clk 0:01:33]} 30. Rc2 {[%clk 0:01:39]}  d3 {[%clk 0:01:32]} 31. Rf2 {[%clk 0:01:36]}  Rc8 {[%clk 0:01:27]} 32. Qe7 {[%clk 0:01:34]}  Qc7 {[%clk 0:01:27]} 33. Qe6 {[%clk 0:01:30]}  Qb6 {[%clk 0:01:25]} 34. Qxb6 {[%clk 0:01:26]}  axb6 {[%clk 0:01:26]} 35. g3 {[%clk 0:01:24]}  Bd4 {[%clk 0:01:05]} 36. Rfd2 {[%clk 0:01:21]}  Be3 {[%clk 0:01:04]} 37. Rg2 {[%clk 0:01:20]}  Rc1 {[%clk 0:01:04]} 38. Rgg1 {[%clk 0:01:14]}  Rfc8 {[%clk 0:00:57]} 39. Rge1 {[%clk 0:01:14]}  Rxd1 {[%clk 0:00:53]} 40. Bxd1 {[%clk 0:01:14]}  Rc1 {[%clk 0:00:51]} 41. Kg2 {[%clk 0:01:14]}  Bd2 {[%clk 0:00:50]} 42. Rf1 {[%clk 0:01:12]}  e3 {[%clk 0:00:50]} 43. g4 {[%clk 0:01:12]}  e2 {[%clk 0:00:50]} 44. Bxe2 {[%clk 0:01:12]}  dxe2 {[%clk 0:00:51]} 45. Rxc1 {[%clk 0:01:06]}  Bxc1 {[%clk 0:00:51]} 46. Kf2 {[%clk 0:01:07]}  fxg4 {[%clk 0:00:51]} 47. Kxe2 {[%clk 0:01:08]}  Bxb2 {[%clk 0:00:51]} 48. Ke3 {[%clk 0:01:04]}  Be5 {[%clk 0:00:51]} 0-1


[Site "https://www.chess.com"]

[Event "Titled Tuesday Blitz August 08 Early 2023"]
[White "Jeet, Jain"]
[Black "Rodriguez Santiago, Jaime"]
[WhiteFideId "5073022"]
[BlackFideId "3100898"]
[WhiteElo "2635"]
[BlackElo "2330"]
[Result "1-0"]
[Round "1"]
[TimeControl "180+1"]
[Date "2023.08.08"]
[WhiteClock "0:00:23"]
[BlackClock "0:00:02"]
[Board "170"]

1. Nf3 {[%clk 0:02:58]}  Nf6 {[%clk 0:02:56]} 2. d4 {[%clk 0:02:55]}  d5 {[%clk 0:02:55]} 3. e3 {[%clk 0:02:53]}  c5 {[%clk 0:02:52]} 4. c3 {[%clk 0:02:53]}  Nc6 {[%clk 0:02:51]} 5. Bd3 {[%clk 0:02:50]}  cxd4 {[%clk 0:02:48]} 6. exd4 {[%clk 0:02:50]}  e6 {[%clk 0:02:36]} 7. O-O {[%clk 0:02:47]}  Bd6 {[%clk 0:02:35]} 8. Bg5 {[%clk 0:02:47]}  h6 {[%clk 0:02:33]} 9. Bh4 {[%clk 0:02:47]}  Qc7 {[%clk 0:02:27]} 10. Nbd2 {[%clk 0:02:45]}  Nh5 {[%clk 0:02:19]} 11. Re1 {[%clk 0:02:42]}  Nf4 {[%clk 0:02:16]} 12. Bc2 {[%clk 0:02:34]}  g5 {[%clk 0:02:14]} 13. Bg3 {[%clk 0:02:34]}  Ne7 {[%clk 0:02:06]} 14. Ne5 {[%clk 0:02:24]}  Bxe5 {[%clk 0:01:57]} 15. Rxe5 {[%clk 0:02:17]}  Bd7 {[%clk 0:01:45]} 16. Qf3 {[%clk 0:02:05]}  O-O-O {[%clk 0:01:21]} 17. Bxf4 {[%clk 0:02:02]}  gxf4 {[%clk 0:01:17]} 18. Qxf4 {[%clk 0:02:03]}  Be8 {[%clk 0:01:12]} 19. Qf3 {[%clk 0:01:59]}  Rg8 {[%clk 0:01:09]} 20. Nf1 {[%clk 0:01:50]}  Nc6 {[%clk 0:01:02]} 21. Re2 {[%clk 0:01:47]}  Kb8 {[%clk 0:00:53]} 22. a4 {[%clk 0:01:47]}  e5 {[%clk 0:00:46]} 23. dxe5 {[%clk 0:01:43]}  Nxe5 {[%clk 0:00:45]} 24. Qf4 {[%clk 0:01:39]}  f6 {[%clk 0:00:43]} 25. Qxf6 {[%clk 0:01:20]}  Ng4 {[%clk 0:00:38]} 26. Qe7 {[%clk 0:01:17]}  Rd7 {[%clk 0:00:32]} 27. Qe6 {[%clk 0:01:14]}  Bf7 {[%clk 0:00:29]} 28. Qf5 {[%clk 0:01:04]}  d4 {[%clk 0:00:27]} 29. h3 {[%clk 0:00:56]}  Bc4 {[%clk 0:00:26]} 30. Ree1 {[%clk 0:00:46]}  Bxf1 {[%clk 0:00:25]} 31. hxg4 {[%clk 0:00:44]}  Bc4 {[%clk 0:00:25]} 32. cxd4 {[%clk 0:00:40]}  Bd5 {[%clk 0:00:24]} 33. Be4 {[%clk 0:00:27]}  Bxe4 {[%clk 0:00:17]} 34. Rxe4 {[%clk 0:00:28]}  Rf7 {[%clk 0:00:16]} 35. Qe5 {[%clk 0:00:27]}  Rg5 {[%clk 0:00:12]} 36. Qxc7+ {[%clk 0:00:25]}  Kxc7 {[%clk 0:00:13]} 37. Rae1 {[%clk 0:00:25]}  Kd7 {[%clk 0:00:12]} 38. b3 {[%clk 0:00:25]}  a5 {[%clk 0:00:11]} 39. f3 {[%clk 0:00:25]}  Rd5 {[%clk 0:00:11]} 40. Re5 {[%clk 0:00:25]}  Kd6 {[%clk 0:00:10]} 41. Re6+ {[%clk 0:00:24]}  Kd7 {[%clk 0:00:10]} 42. Rxh6 {[%clk 0:00:25]}  b5 {[%clk 0:00:11]} 43. Ra6 {[%clk 0:00:22]}  bxa4 {[%clk 0:00:10]} 44. bxa4 {[%clk 0:00:23]}  Rf4 {[%clk 0:00:10]} 45. Rb1 {[%clk 0:00:23]}  Rfxd4 {[%clk 0:00:10]} 46. Rb7+ {[%clk 0:00:23]}  Kc8 {[%clk 0:00:11]} 47. Rh7 {[%clk 0:00:22]}  Rd1+ {[%clk 0:00:09]} 48. Kh2 {[%clk 0:00:22]}  Kb8 {[%clk 0:00:06]} 49. Rah6 {[%clk 0:00:21]}  Rd8 {[%clk 0:00:06]} 50. Rb6+ {[%clk 0:00:19]}  Ka8 {[%clk 0:00:06]} 51. Ra6+ {[%clk 0:00:20]}  Kb8 {[%clk 0:00:06]} 52. Rxa5 {[%clk 0:00:21]}  R1d4 {[%clk 0:00:05]} 53. Rb5+ {[%clk 0:00:21]}  Ka8 {[%clk 0:00:06]} 54. Ra5+ {[%clk 0:00:20]}  Kb8 {[%clk 0:00:05]} 55. Rah5 {[%clk 0:00:21]}  Ka8 {[%clk 0:00:05]} 56. Rh8 {[%clk 0:00:22]}  Kb8 {[%clk 0:00:04]} 57. Rxd8+ {[%clk 0:00:22]}  Rxd8 {[%clk 0:00:05]} 58. Re5 {[%clk 0:00:22]}  Rd4 {[%clk 0:00:06]} 59. g5 {[%clk 0:00:22]}  Rxa4 {[%clk 0:00:06]} 60. g6 {[%clk 0:00:22]}  Ra6 {[%clk 0:00:06]} 61. g7 {[%clk 0:00:22]}  Rh6+ {[%clk 0:00:02]} 62. Kg1 {[%clk 0:00:23]} 1-0


[Site "https://www.chess.com"]

[Event "Titled Tuesday Blitz August 08 Early 2023"]
[White "Lenaerts, Lennert"]
[Black "MarijaKuznecova"]
[WhiteFideId "211435"]
[WhiteElo "2633"]
[BlackElo "2328"]
[Result "0-1"]
[Round "1"]
[TimeControl "180+1"]
[Date "2023.08.08"]
[WhiteClock "0:00:12"]
[BlackClock "0:00:34"]
[Board "172"]

1. d4 {[%clk 0:03:00]}  Nf6 {[%clk 0:02:59]} 2. c4 {[%clk 0:02:59]}  c5 {[%clk 0:02:59]} 3. d5 {[%clk 0:02:59]}  b5 {[%clk 0:02:59]} 4. cxb5 {[%clk 0:03:00]}  a6 {[%clk 0:03:00]} 5. bxa6 {[%clk 0:03:01]}  g6 {[%clk 0:03:00]} 6. Nc3 {[%clk 0:03:01]}  Bg7 {[%clk 0:03:00]} 7. e4 {[%clk 0:03:02]}  O-O {[%clk 0:03:00]} 8. a7 {[%clk 0:03:03]}  Rxa7 {[%clk 0:02:58]} 9. Nf3 {[%clk 0:03:04]}  d6 {[%clk 0:02:58]} 10. Be2 {[%clk 0:02:58]}  Qa5 {[%clk 0:02:58]} 11. O-O {[%clk 0:02:54]}  Ba6 {[%clk 0:02:54]} 12. Bd2 {[%clk 0:02:55]}  Bxe2 {[%clk 0:02:51]} 13. Qxe2 {[%clk 0:02:55]}  Qa6 {[%clk 0:02:50]} 14. Nb5 {[%clk 0:02:54]}  Rb7 {[%clk 0:02:43]} 15. a4 {[%clk 0:02:52]}  Nbd7 {[%clk 0:02:37]} 16. b3 {[%clk 0:02:48]}  Ng4 {[%clk 0:02:32]} 17. Rab1 {[%clk 0:02:46]}  Nb6 {[%clk 0:02:18]} 18. Rfc1 {[%clk 0:02:31]}  Rc8 {[%clk 0:02:02]} 19. h3 {[%clk 0:02:31]}  Ne5 {[%clk 0:02:02]} 20. Nxe5 {[%clk 0:02:31]}  Bxe5 {[%clk 0:02:03]} 21. f4 {[%clk 0:02:31]}  Bg7 {[%clk 0:02:01]} 22. Bc3 {[%clk 0:02:12]}  c4 {[%clk 0:01:56]} 23. Bxg7 {[%clk 0:02:11]}  Kxg7 {[%clk 0:01:57]} 24. bxc4 {[%clk 0:02:07]}  Nxa4 {[%clk 0:01:57]} 25. Ra1 {[%clk 0:02:02]}  Qb6+ {[%clk 0:01:54]} 26. Kh2 {[%clk 0:02:00]}  Nc5 {[%clk 0:01:51]} 27. e5 {[%clk 0:02:00]}  Nb3 {[%clk 0:01:50]} 28. exd6 {[%clk 0:01:48]}  Nxc1 {[%clk 0:01:46]} 29. Rxc1 {[%clk 0:01:49]}  exd6 {[%clk 0:01:45]} 30. f5 {[%clk 0:01:46]}  Qd8 {[%clk 0:01:42]} 31. Qb2+ {[%clk 0:01:42]}  Kg8 {[%clk 0:01:40]} 32. fxg6 {[%clk 0:01:41]}  hxg6 {[%clk 0:01:39]} 33. Re1 {[%clk 0:01:28]}  Rxc4 {[%clk 0:01:35]} 34. Qe2 {[%clk 0:01:20]}  Rc8 {[%clk 0:01:24]} 35. Nd4 {[%clk 0:01:18]}  Qf6 {[%clk 0:01:20]} 36. Nc6 {[%clk 0:01:14]}  Rb2 {[%clk 0:01:13]} 37. Qg4 {[%clk 0:01:09]}  Ra8 {[%clk 0:01:08]} 38. Re3 {[%clk 0:01:04]}  Raa2 {[%clk 0:01:02]} 39. Rg3 {[%clk 0:01:02]}  Kg7 {[%clk 0:00:57]} 40. h4 {[%clk 0:01:01]}  Ra8 {[%clk 0:00:54]} 41. Rf3 {[%clk 0:00:56]}  Ra4 {[%clk 0:00:49]} 42. Rxf6 {[%clk 0:00:15]}  Rxg4 {[%clk 0:00:48]} 43. Rxd6 {[%clk 0:00:16]}  Rxh4+ {[%clk 0:00:48]} 44. Kg3 {[%clk 0:00:16]}  Rc4 {[%clk 0:00:41]} 45. Rd7 {[%clk 0:00:15]}  Rc3+ {[%clk 0:00:39]} 46. Kh2 {[%clk 0:00:15]}  Rcc2 {[%clk 0:00:38]} 47. Ne5 {[%clk 0:00:15]}  Rxg2+ {[%clk 0:00:39]} 48. Kh3 {[%clk 0:00:16]}  Rgf2 {[%clk 0:00:37]} 49. d6 {[%clk 0:00:15]}  Rbd2 {[%clk 0:00:33]} 50. Re7 {[%clk 0:00:14]}  Rxd6 {[%clk 0:00:33]} 51. Ng4 {[%clk 0:00:13]}  Rf3+ {[%clk 0:00:33]} 52. Kg2 {[%clk 0:00:14]}  Rfd3 {[%clk 0:00:33]} 53. Nf2 {[%clk 0:00:13]}  R3d5 {[%clk 0:00:33]} 54. Re4 {[%clk 0:00:13]}  Rg5+ {[%clk 0:00:32]} 55. Kf3 {[%clk 0:00:13]}  Rf6+ {[%clk 0:00:33]} 56. Ke3 {[%clk 0:00:13]}  Rg3+ {[%clk 0:00:33]} 57. Ke2 {[%clk 0:00:12]}  Rg2 {[%clk 0:00:34]} 0-1


[Site "https://www.chess.com"]

[Event "Titled Tuesday Blitz August 08 Early 2023"]
[White "GaiozNigalidze"]
[Black "Radzhabov, Rodion"]
[BlackFideId "884715"]
[WhiteElo "2327"]
[BlackElo "2632"]
[Result "0-1"]
[Round "1"]
[TimeControl "180+1"]
[Date "2023.08.08"]
[WhiteClock "0:00:21"]
[BlackClock "0:00:07"]
[Board "173"]

1. d4 {[%clk 0:02:44]}  Nf6 {[%clk 0:02:59]} 2. c4 {[%clk 0:02:42]}  e6 {[%clk 0:02:58]} 3. Nf3 {[%clk 0:02:37]}  Bb4+ {[%clk 0:02:57]} 4. Bd2 {[%clk 0:02:33]}  Qe7 {[%clk 0:02:55]} 5. Nc3 {[%clk 0:02:28]}  Bxc3 {[%clk 0:02:53]} 6. Bxc3 {[%clk 0:02:27]}  Ne4 {[%clk 0:02:51]} 7. Qd3 {[%clk 0:02:26]}  Nxc3 {[%clk 0:02:35]} 8. Qxc3 {[%clk 0:02:27]}  O-O {[%clk 0:02:34]} 9. e4 {[%clk 0:02:26]}  d6 {[%clk 0:02:32]} 10. Be2 {[%clk 0:02:21]}  c5 {[%clk 0:02:33]} 11. O-O {[%clk 0:02:18]}  Nc6 {[%clk 0:02:32]} 12. Rfd1 {[%clk 0:02:15]}  e5 {[%clk 0:02:29]} 13. d5 {[%clk 0:02:04]}  Nd4 {[%clk 0:02:18]} 14. Nxd4 {[%clk 0:01:59]}  exd4 {[%clk 0:02:13]} 15. Qd3 {[%clk 0:01:55]}  f5 {[%clk 0:01:53]} 16. Bf3 {[%clk 0:01:53]}  a5 {[%clk 0:01:40]} 17. Re1 {[%clk 0:01:51]}  f4 {[%clk 0:01:37]} 18. a3 {[%clk 0:01:35]}  Bd7 {[%clk 0:01:24]} 19. Rab1 {[%clk 0:01:33]}  a4 {[%clk 0:01:19]} 20. h3 {[%clk 0:01:29]}  b5 {[%clk 0:01:11]} 21. e5 {[%clk 0:01:18]}  dxe5 {[%clk 0:00:56]} 22. d6 {[%clk 0:01:18]}  Qxd6 {[%clk 0:00:56]} 23. Bxa8 {[%clk 0:01:15]}  Rxa8 {[%clk 0:00:57]} 24. cxb5 {[%clk 0:01:10]}  Rf8 {[%clk 0:00:23]} 25. Qe4 {[%clk 0:00:51]}  Bf5 {[%clk 0:00:20]} 26. Qb7 {[%clk 0:00:42]}  Bxb1 {[%clk 0:00:19]} 27. Rxb1 {[%clk 0:00:43]}  f3 {[%clk 0:00:17]} 28. g3 {[%clk 0:00:40]}  d3 {[%clk 0:00:16]} 29. Rd1 {[%clk 0:00:38]}  c4 {[%clk 0:00:16]} 30. Qe4 {[%clk 0:00:33]}  Qd4 {[%clk 0:00:15]} 31. Qc6 {[%clk 0:00:31]}  e4 {[%clk 0:00:13]} 32. b6 {[%clk 0:00:26]}  e3 {[%clk 0:00:07]} 33. Qe6+ {[%clk 0:00:18]}  Kh8 {[%clk 0:00:08]} 34. Qxe3 {[%clk 0:00:19]}  Qxe3 {[%clk 0:00:08]} 35. fxe3 {[%clk 0:00:19]}  Rb8 {[%clk 0:00:08]} 36. Kf2 {[%clk 0:00:20]}  Rxb6 {[%clk 0:00:08]} 37. Rc1 {[%clk 0:00:20]}  Rxb2+ {[%clk 0:00:05]} 38. Kxf3 {[%clk 0:00:21]}  Rc2 {[%clk 0:00:05]} 39. Rb1 {[%clk 0:00:21]}  h5 {[%clk 0:00:06]} 40. e4 {[%clk 0:00:21]}  d2 {[%clk 0:00:04]} 41. Ke2 {[%clk 0:00:21]}  c3 {[%clk 0:00:04]} 42. e5 {[%clk 0:00:22]}  Rc1 {[%clk 0:00:04]} 43. e6 {[%clk 0:00:22]}  Rxb1 {[%clk 0:00:04]} 44. e7 {[%clk 0:00:23]}  Re1+ {[%clk 0:00:05]} 45. Kf2 {[%clk 0:00:22]}  Rxe7 {[%clk 0:00:06]} 46. Kf3 {[%clk 0:00:22]}  d1=Q+ {[%clk 0:00:06]} 47. Kf4 {[%clk 0:00:21]}  Qd4+ {[%clk 0:00:07]} 0-1


[Site "https://www.chess.com"]

[Event "Titled Tuesday Blitz August 08 Early 2023"]
[White "Tregubov, Pavel V."]
[Black "Villuendas Valero, Adrian"]
[WhiteFideId "4115341"]
[BlackFideId "2262460"]
[WhiteElo "2628"]
[BlackElo "2322"]
[Result "1/2-1/2"]
[Round "1"]
[TimeControl "180+1"]
[Date "2023.08.08"]
[WhiteClock "0:00:14"]
[BlackClock "0:00:19"]
[Board "178"]

1. e4 {[%clk 0:02:58]}  d6 {[%clk 0:03:00]} 2. d4 {[%clk 0:02:58]}  Nf6 {[%clk 0:03:00]} 3. Nc3 {[%clk 0:02:56]}  e5 {[%clk 0:03:00]} 4. Nf3 {[%clk 0:02:54]}  Nbd7 {[%clk 0:03:00]} 5. Bc4 {[%clk 0:02:54]}  Be7 {[%clk 0:03:00]} 6. O-O {[%clk 0:02:54]}  O-O {[%clk 0:03:00]} 7. Re1 {[%clk 0:02:54]}  c6 {[%clk 0:03:00]} 8. a4 {[%clk 0:02:55]}  h6 {[%clk 0:03:01]} 9. Ba2 {[%clk 0:02:55]}  Qc7 {[%clk 0:03:00]} 10. Nh4 {[%clk 0:02:42]}  Re8 {[%clk 0:02:55]} 11. Nf5 {[%clk 0:02:34]}  Nf8 {[%clk 0:02:54]} 12. Nxe7+ {[%clk 0:02:25]}  Qxe7 {[%clk 0:02:55]} 13. Qd3 {[%clk 0:02:14]}  Be6 {[%clk 0:02:49]} 14. d5 {[%clk 0:02:11]}  cxd5 {[%clk 0:02:48]} 15. Nxd5 {[%clk 0:02:08]}  Nxd5 {[%clk 0:02:47]} 16. Bxd5 {[%clk 0:02:08]}  Bxd5 {[%clk 0:02:47]} 17. Qxd5 {[%clk 0:02:09]}  Ne6 {[%clk 0:02:43]} 18. Be3 {[%clk 0:02:08]}  Rac8 {[%clk 0:02:37]} 19. c3 {[%clk 0:02:08]}  a6 {[%clk 0:02:28]} 20. Red1 {[%clk 0:02:07]}  Red8 {[%clk 0:02:26]} 21. Rd2 {[%clk 0:01:58]}  Rc6 {[%clk 0:02:20]} 22. Rad1 {[%clk 0:01:55]}  Rdc8 {[%clk 0:02:08]} 23. a5 {[%clk 0:01:46]}  Nc7 {[%clk 0:01:41]} 24. Qd3 {[%clk 0:01:30]}  Nb5 {[%clk 0:01:41]} 25. g3 {[%clk 0:01:28]}  Rc4 {[%clk 0:01:33]} 26. Bb6 {[%clk 0:01:21]}  Qd7 {[%clk 0:01:24]} 27. Qd5 {[%clk 0:01:17]}  Qc6 {[%clk 0:01:17]} 28. f3 {[%clk 0:01:13]}  Kf8 {[%clk 0:01:10]} 29. Kg2 {[%clk 0:01:13]}  Ke7 {[%clk 0:01:10]} 30. Rd3 {[%clk 0:01:09]}  Qxd5 {[%clk 0:01:04]} 31. Rxd5 {[%clk 0:01:08]}  Ke6 {[%clk 0:01:03]} 32. R5d3 {[%clk 0:01:05]}  R8c6 {[%clk 0:00:51]} 33. g4 {[%clk 0:00:59]}  Rc8 {[%clk 0:00:49]} 34. h4 {[%clk 0:01:00]}  g6 {[%clk 0:00:47]} 35. Kf2 {[%clk 0:00:58]}  R8c6 {[%clk 0:00:46]} 36. h5 {[%clk 0:00:58]}  g5 {[%clk 0:00:43]} 37. Ke3 {[%clk 0:00:55]}  Rc8 {[%clk 0:00:43]} 38. Kd2 {[%clk 0:00:53]}  Ke7 {[%clk 0:00:39]} 39. Rc1 {[%clk 0:00:50]}  R4c6 {[%clk 0:00:34]} 40. b3 {[%clk 0:00:45]}  Nc7 {[%clk 0:00:30]} 41. Ke3 {[%clk 0:00:37]}  Ne6 {[%clk 0:00:29]} 42. c4 {[%clk 0:00:34]}  Nf4 {[%clk 0:00:27]} 43. Rd2 {[%clk 0:00:32]}  Ne6 {[%clk 0:00:22]} 44. Rcd1 {[%clk 0:00:32]}  Nf4 {[%clk 0:00:20]} 45. Rc2 {[%clk 0:00:19]}  Ne6 {[%clk 0:00:20]} 46. Rdc1 {[%clk 0:00:19]}  Nf4 {[%clk 0:00:20]} 47. Rd2 {[%clk 0:00:16]}  Ne6 {[%clk 0:00:19]} 48. Rcd1 {[%clk 0:00:15]}  Nf4 {[%clk 0:00:19]} 49. Rc1 {[%clk 0:00:14]} 1/2-1/2


[Site "https://www.chess.com"]

[Event "Titled Tuesday Blitz August 08 Early 2023"]
[White "Pavlidou, Ekaterini"]
[Black "HamedWafa4"]
[WhiteFideId "4213262"]
[WhiteElo "2322"]
[BlackElo "2626"]
[Result "0-1"]
[Round "1"]
[TimeControl "180+1"]
[Date "2023.08.08"]
[WhiteClock "0:02:15"]
[BlackClock "0:01:03"]
[Board "179"]

1. d4 {[%clk 0:02:59]}  Nf6 {[%clk 0:02:58]} 2. c4 {[%clk 0:02:59]}  b6 {[%clk 0:02:55]} 3. Nc3 {[%clk 0:02:59]}  Bb7 {[%clk 0:02:54]} 4. f3 {[%clk 0:02:59]}  e6 {[%clk 0:02:54]} 5. e4 {[%clk 0:02:59]}  Bb4 {[%clk 0:02:54]} 6. Qb3 {[%clk 0:02:58]}  a5 {[%clk 0:02:52]} 7. a3 {[%clk 0:02:58]}  Bxc3+ {[%clk 0:02:52]} 8. Qxc3 {[%clk 0:02:58]}  a4 {[%clk 0:02:52]} 9. Bd3 {[%clk 0:02:56]}  d6 {[%clk 0:02:51]} 10. Ne2 {[%clk 0:02:56]}  Nbd7 {[%clk 0:02:47]} 11. O-O {[%clk 0:02:55]}  O-O {[%clk 0:02:47]} 12. Be3 {[%clk 0:02:54]}  e5 {[%clk 0:02:45]} 13. d5 {[%clk 0:02:54]}  Nc5 {[%clk 0:02:45]} 14. Bc2 {[%clk 0:02:54]}  Nh5 {[%clk 0:02:43]} 15. Qd2 {[%clk 0:02:53]}  g6 {[%clk 0:02:40]} 16. g4 {[%clk 0:02:49]}  Ng7 {[%clk 0:02:39]} 17. Rf2 {[%clk 0:02:46]}  Bc8 {[%clk 0:02:38]} 18. Rg2 {[%clk 0:02:45]}  Kh8 {[%clk 0:02:36]} 19. Rf1 {[%clk 0:02:43]}  f5 {[%clk 0:02:30]} 20. gxf5 {[%clk 0:02:42]}  gxf5 {[%clk 0:02:30]} 21. Bg5 {[%clk 0:02:42]}  Qe8 {[%clk 0:02:26]} 22. Bh6 {[%clk 0:02:40]}  Rg8 {[%clk 0:02:19]} 23. Qg5 {[%clk 0:02:37]}  Qf7 {[%clk 0:02:16]} 24. exf5 {[%clk 0:02:37]}  Ne8 {[%clk 0:02:12]} 25. Qxg8+ {[%clk 0:02:34]}  Qxg8 {[%clk 0:02:12]} 26. Rxg8+ {[%clk 0:02:34]}  Kxg8 {[%clk 0:02:13]} 27. Ng3 {[%clk 0:02:34]}  Kf7 {[%clk 0:02:08]} 28. Kf2 {[%clk 0:02:33]}  Ba6 {[%clk 0:02:04]} 29. Be4 {[%clk 0:02:30]}  Bxc4 {[%clk 0:02:02]} 30. Rc1 {[%clk 0:02:29]}  Bb5 {[%clk 0:01:59]} 31. Nh5 {[%clk 0:02:26]}  Rc8 {[%clk 0:01:22]} 32. h4 {[%clk 0:02:20]}  c6 {[%clk 0:01:17]} 33. dxc6 {[%clk 0:02:19]}  Bxc6 {[%clk 0:01:16]} 34. Bxc6 {[%clk 0:02:19]}  Rxc6 {[%clk 0:01:03]} 35. Be3 {[%clk 0:02:19]}  Nd3+ {[%clk 0:01:03]} 36. Ke2 {[%clk 0:02:15]}  Nxc1+ {[%clk 0:01:03]} 0-1


[Site "https://www.chess.com"]